[Event "Late-Titled-Tuesday-Blitz-July-09-2024"]
[Site "Chess.com"]
[Date "2024.07.09"]
[Round "11"]
[White "Vladimir_2020"]
[Black "mbojan"]
[Result "0-1"]
[WhiteElo "2777"]
[BlackElo "2926"]
[TimeControl "180+1"]
[EndTime "16:06:38 PDT"]
[Termination "mbojan won on time"]

1. e4 {[%clk 0:03:00.9]} 1... c5 {[%clk 0:02:57.8]} 2. Nf3 {[%clk 0:03:00]} 2...
e6 {[%clk 0:02:57.7]} 3. c4 {[%clk 0:02:57.3]} 3... Nc6 {[%clk 0:02:50.4]} 4. d4
{[%clk 0:02:56.5]} 4... cxd4 {[%clk 0:02:49.9]} 5. Nxd4 {[%clk 0:02:56.5]} 5...
Bc5 {[%clk 0:02:50.4]} 6. Nb3 {[%clk 0:02:53.9]} 6... Bb4+ {[%clk 0:02:50.4]} 7.
Bd2 {[%clk 0:02:53.1]} 7... a5 {[%clk 0:02:50.2]} 8. Bxb4 {[%clk 0:02:34.5]}
8... axb4 {[%clk 0:02:50.2]} 9. N1d2 {[%clk 0:02:34]} 9... Nf6 {[%clk
0:02:35.3]} 10. Be2 {[%clk 0:02:30.1]} 10... O-O {[%clk 0:02:33.3]} 11. O-O
{[%clk 0:02:29.8]} 11... d6 {[%clk 0:02:31.7]} 12. Re1 {[%clk 0:02:18]} 12... b6
{[%clk 0:02:31.1]} 13. Bf1 {[%clk 0:02:17.7]} 13... Bb7 {[%clk 0:02:29.8]} 14.
Nf3 {[%clk 0:02:11.2]} 14... Qc7 {[%clk 0:02:28.8]} 15. Nfd4 {[%clk 0:02:05.2]}
15... Nxd4 {[%clk 0:02:24.6]} 16. Qxd4 {[%clk 0:02:03.3]} 16... e5 {[%clk
0:02:12.7]} 17. Qd3 {[%clk 0:01:45.2]} 17... Qc6 {[%clk 0:01:42.4]} 18. f3
{[%clk 0:01:42.3]} 18... Rfd8 {[%clk 0:01:42.5]} 19. Qd2 {[%clk 0:01:34.5]}
19... Ra4 {[%clk 0:01:40.2]} 20. Nc1 {[%clk 0:01:33.6]} 20... Rda8 {[%clk
0:00:38.1]} 21. b3 {[%clk 0:00:55.2]} 21... Qc5+ {[%clk 0:00:38]} 22. Qf2 {[%clk
0:00:54.9]} 22... Ra3 {[%clk 0:00:32.5]} 23. Rb1 {[%clk 0:00:54.3]} 23... Kf8
{[%clk 0:00:23.9]} 24. Rb2 {[%clk 0:00:54.1]} 24... Qxf2+ {[%clk 0:00:19.2]} 25.
Kxf2 {[%clk 0:00:53.7]} 25... Nd7 {[%clk 0:00:19.9]} 26. Rd1 {[%clk 0:00:45.2]}
26... Ke7 {[%clk 0:00:20]} 27. Rdd2 {[%clk 0:00:43]} 27... Nc5 {[%clk
0:00:19.7]} 28. Nd3 {[%clk 0:00:42.8]} 28... Nxd3+ {[%clk 0:00:19.7]} 29. Bxd3
{[%clk 0:00:42.8]} 29... Bc6 {[%clk 0:00:19.3]} 30. Ke3 {[%clk 0:00:38.4]} 30...
R3a5 {[%clk 0:00:18.5]} 31. h4 {[%clk 0:00:34.4]} 31... g6 {[%clk 0:00:17.7]}
32. g3 {[%clk 0:00:30.9]} 32... Rf8 {[%clk 0:00:17.3]} 33. Rh2 {[%clk
0:00:22.6]} 33... f5 {[%clk 0:00:15.3]} 34. exf5 {[%clk 0:00:22.3]} 34... gxf5
{[%clk 0:00:16.2]} 35. f4 {[%clk 0:00:21.7]} 35... Rg8 {[%clk 0:00:11]} 36. Rh3
{[%clk 0:00:11.8]} 36... Kf6 {[%clk 0:00:11.1]} 37. h5 {[%clk 0:00:11.6]} 37...
h6 {[%clk 0:00:11]} 38. Be2 {[%clk 0:00:08.5]} 38... Ra7 {[%clk 0:00:08.6]} 39.
Bf3 {[%clk 0:00:06.2]} 39... e4 {[%clk 0:00:04.1]} 40. Bd1 {[%clk 0:00:06]}
40... Rag7 {[%clk 0:00:04.4]} 41. Kf2 {[%clk 0:00:05.4]} 41... e3+ {[%clk
0:00:03.8]} 42. Kxe3 {[%clk 0:00:05.4]} 42... Rxg3+ {[%clk 0:00:04.5]} 43. Rxg3
{[%clk 0:00:05.6]} 43... Rxg3+ {[%clk 0:00:05.4]} 44. Kd4 {[%clk 0:00:05.8]}
44... Be4 {[%clk 0:00:04.9]} 45. Rd2 {[%clk 0:00:05.3]} 45... Rh3 {[%clk
0:00:05.2]} 46. Be2 {[%clk 0:00:04.5]} 46... Ke6 {[%clk 0:00:05.6]} 47. Bd1
{[%clk 0:00:04.6]} 47... Rg3 {[%clk 0:00:05.7]} 48. Be2 {[%clk 0:00:04.6]} 48...
Rh3 {[%clk 0:00:05.4]} 49. Bd1 {[%clk 0:00:04.9]} 49... Kd7 {[%clk 0:00:05.8]}
50. Be2 {[%clk 0:00:04.6]} 50... Kc6 {[%clk 0:00:06.4]} 51. Bd1 {[%clk
0:00:04.8]} 51... Rg3 {[%clk 0:00:06.1]} 52. Be2 {[%clk 0:00:05]} 52... Kc7
{[%clk 0:00:05.4]} 53. Bd1 {[%clk 0:00:05.1]} 53... Rh3 {[%clk 0:00:06]} 54. Be2
{[%clk 0:00:05.3]} 54... Kd7 {[%clk 0:00:06.1]} 55. Bd1 {[%clk 0:00:05.5]} 55...
Kd8 {[%clk 0:00:06.7]} 56. Be2 {[%clk 0:00:05.7]} 56... Ke8 {[%clk 0:00:07.4]}
57. Bd1 {[%clk 0:00:06]} 57... Kf7 {[%clk 0:00:08]} 58. Be2 {[%clk 0:00:06.3]}
58... Kf6 {[%clk 0:00:08.2]} 59. Bd1 {[%clk 0:00:06.6]} 59... Ke6 {[%clk
0:00:05.5]} 60. Be2 {[%clk 0:00:06.6]} 60... Rc3 {[%clk 0:00:06.2]} 61. Bd1
{[%clk 0:00:06.3]} 61... Rc1 {[%clk 0:00:06.7]} 62. Be2 {[%clk 0:00:06.4]} 62...
Ra1 {[%clk 0:00:06.8]} 63. Bd1 {[%clk 0:00:06.6]} 63... Bb1 {[%clk 0:00:06.5]}
64. Bf3 {[%clk 0:00:06.3]} 64... Rxa2 {[%clk 0:00:06.4]} 65. Rxa2 {[%clk
0:00:05.7]} 65... Bxa2 {[%clk 0:00:07.3]} 66. Bd1 {[%clk 0:00:05.9]} 66... Bb1
{[%clk 0:00:07.4]} 67. Ke3 {[%clk 0:00:03.5]} 67... d5 {[%clk 0:00:04.4]} 68.
cxd5+ {[%clk 0:00:02.3]} 68... Kxd5 {[%clk 0:00:04.6]} 69. Be2 {[%clk
0:00:02.1]} 69... Kc5 {[%clk 0:00:02.6]} 70. Bc4 {[%clk 0:00:01.3]} 70... Bc2
{[%clk 0:00:03.1]} 0-1

[Event "Late-Titled-Tuesday-Blitz-July-09-2024"]
[Site "Chess.com"]
[Date "2024.07.09"]
[Round "11"]
[White "dodorox"]
[Black "Ninocanina"]
[Result "1-0"]
[WhiteElo "2174"]
[BlackElo "1958"]
[TimeControl "180+1"]
[EndTime "16:06:44 PDT"]
[Termination "dodorox won by resignation"]

1. d4 {[%clk 0:03:00.9]} 1... d5 {[%clk 0:02:37]} 2. c4 {[%clk 0:03:00.7]} 2...
e6 {[%clk 0:02:34.5]} 3. Nc3 {[%clk 0:03:00.2]} 3... Nf6 {[%clk 0:02:34.3]} 4.
cxd5 {[%clk 0:03:00.5]} 4... exd5 {[%clk 0:02:34.3]} 5. Bg5 {[%clk 0:03:00.9]}
5... Be7 {[%clk 0:02:34.1]} 6. e3 {[%clk 0:03:01.3]} 6... O-O {[%clk 0:02:33.9]}
7. Bd3 {[%clk 0:03:01.9]} 7... h6 {[%clk 0:02:31.2]} 8. Bh4 {[%clk 0:03:01.6]}
8... c6 {[%clk 0:02:31.1]} 9. Nf3 {[%clk 0:03:01.8]} 9... Re8 {[%clk 0:02:25.6]}
10. O-O {[%clk 0:03:01.4]} 10... Nbd7 {[%clk 0:02:24.5]} 11. Rb1 {[%clk
0:02:57.6]} 11... Ne4 {[%clk 0:02:20.9]} 12. Bxe7 {[%clk 0:02:57.2]} 12... Qxe7
{[%clk 0:02:21.1]} 13. Bxe4 {[%clk 0:02:57.5]} 13... dxe4 {[%clk 0:02:20.9]} 14.
Nd2 {[%clk 0:02:58]} 14... Nf6 {[%clk 0:02:19.7]} 15. b4 {[%clk 0:02:52.5]}
15... Bg4 {[%clk 0:02:18.9]} 16. Qc2 {[%clk 0:02:49.8]} 16... Bf5 {[%clk
0:02:03.1]} 17. Ne2 {[%clk 0:02:46.4]} 17... Rad8 {[%clk 0:01:53.4]} 18. Qc5
{[%clk 0:02:44.9]} 18... Bh7 {[%clk 0:01:37.1]} 19. Qxe7 {[%clk 0:02:42.2]}
19... Rxe7 {[%clk 0:01:37.3]} 20. Nc4 {[%clk 0:02:36]} 20... Nd5 {[%clk
0:01:31.8]} 21. b5 {[%clk 0:02:29.3]} 21... cxb5 {[%clk 0:01:24.2]} 22. Rxb5
{[%clk 0:02:28.2]} 22... a6 {[%clk 0:01:22.9]} 23. Rb2 {[%clk 0:02:15.6]} 23...
b5 {[%clk 0:01:22.8]} 24. Nd2 {[%clk 0:01:52.5]} 24... Rc8 {[%clk 0:01:20.1]}
25. Nb3 {[%clk 0:01:49.3]} 25... Nb6 {[%clk 0:01:17.7]} 26. Nc5 {[%clk
0:01:45.5]} 26... Nc4 {[%clk 0:01:15.9]} 27. Rb4 {[%clk 0:01:43.5]} 27... Rc6
{[%clk 0:01:14.6]} 28. a4 {[%clk 0:01:40.4]} 28... Rb6 {[%clk 0:01:08.1]} 29.
Rfb1 {[%clk 0:01:33.9]} 29... Nd6 {[%clk 0:01:02.9]} 30. axb5 {[%clk 0:01:26.6]}
30... axb5 {[%clk 0:01:01]} 31. Nc3 {[%clk 0:01:25.9]} 31... Re8 {[%clk
0:00:55.6]} 32. R4b3 {[%clk 0:01:06.1]} 32... f5 {[%clk 0:00:47]} 33. Nxb5
{[%clk 0:01:00.7]} 33... Nxb5 {[%clk 0:00:35.2]} 34. Rxb5 {[%clk 0:01:01.6]}
34... Rxb5 {[%clk 0:00:31.2]} 35. Rxb5 {[%clk 0:01:02.5]} 35... Ra8 {[%clk
0:00:31.2]} 36. g3 {[%clk 0:00:52.5]} 36... Bg6 {[%clk 0:00:29.7]} 37. Ne6
{[%clk 0:00:41.1]} 37... Bh5 {[%clk 0:00:20.2]} 38. Rb1 {[%clk 0:00:39.5]} 38...
Kf7 {[%clk 0:00:18.6]} 39. Nf4 {[%clk 0:00:37.8]} 39... Bf3 {[%clk 0:00:18]} 40.
Ng2 {[%clk 0:00:35.3]} 40... g5 {[%clk 0:00:15.9]} 41. Ne1 {[%clk 0:00:32.8]}
41... Be2 {[%clk 0:00:15.5]} 42. Kg2 {[%clk 0:00:32.4]} 42... Ra6 {[%clk
0:00:13.3]} 43. h3 {[%clk 0:00:31.3]} 43... Kf6 {[%clk 0:00:13.3]} 44. Rb2
{[%clk 0:00:28.6]} 44... Bh5 {[%clk 0:00:11.9]} 45. Rd2 {[%clk 0:00:22.1]} 45...
Rc6 {[%clk 0:00:11.1]} 46. f3 {[%clk 0:00:18.6]} 46... Rc1 {[%clk 0:00:10.8]}
47. Re2 {[%clk 0:00:16.2]} 47... exf3+ {[%clk 0:00:04.7]} 48. Nxf3 {[%clk
0:00:17.1]} 48... g4 {[%clk 0:00:02.1]} 49. hxg4 {[%clk 0:00:15.6]} 49... Bxg4
{[%clk 0:00:02.5]} 50. Rf2 {[%clk 0:00:14.1]} 50... Ke6 {[%clk 0:00:02.7]} 51.
Ne5 {[%clk 0:00:12.9]} 51... Kd5 {[%clk 0:00:02.9]} 52. Nxg4 {[%clk 0:00:12.2]}
52... fxg4 {[%clk 0:00:03.3]} 53. Rf5+ {[%clk 0:00:10.8]} 53... Ke4 {[%clk
0:00:03.2]} 54. Rf4+ {[%clk 0:00:11.4]} 54... Kxe3 {[%clk 0:00:03.4]} 55. Rxg4
{[%clk 0:00:12]} 55... Rc2+ {[%clk 0:00:03.8]} 56. Kh3 {[%clk 0:00:12.3]} 56...
Rc1 {[%clk 0:00:03.9]} 57. Rh4 {[%clk 0:00:12.1]} 57... Rh1+ {[%clk 0:00:03.2]}
58. Kg4 {[%clk 0:00:12.6]} 58... Rxh4+ {[%clk 0:00:03.3]} 59. Kxh4 {[%clk
0:00:13]} 59... Kxd4 {[%clk 0:00:03.7]} 60. Kh5 {[%clk 0:00:13.7]} 60... Ke5
{[%clk 0:00:04]} 61. Kxh6 {[%clk 0:00:12.9]} 61... Kf5 {[%clk 0:00:03.7]} 62.
Kh5 {[%clk 0:00:13]} 62... Kf6 {[%clk 0:00:04.2]} 63. g4 {[%clk 0:00:12.9]}
63... Kg7 {[%clk 0:00:04.5]} 64. Kg5 {[%clk 0:00:13.3]} 64... Kh7 {[%clk
0:00:04.8]} 65. Kf6 {[%clk 0:00:12.6]} 65... Kg8 {[%clk 0:00:05.1]} 66. Kg6
{[%clk 0:00:11.2]} 66... Kh8 {[%clk 0:00:02.8]} 67. Kf7 {[%clk 0:00:10.8]} 67...
Kh7 {[%clk 0:00:03.4]} 68. g5 {[%clk 0:00:11.2]} 68... Kh8 {[%clk 0:00:03.4]}
69. Kf6 {[%clk 0:00:11.5]} 69... Kg8 {[%clk 0:00:03.7]} 70. Kg6 {[%clk
0:00:11.6]} 70... Kf8 {[%clk 0:00:04.2]} 71. Kh7 {[%clk 0:00:11.7]} 71... Kf7
{[%clk 0:00:04.8]} 72. g6+ {[%clk 0:00:12.6]} 72... Kf8 {[%clk 0:00:04.9]} 73.
g7+ {[%clk 0:00:13.5]} 73... Ke7 {[%clk 0:00:05.6]} 74. g8=Q {[%clk 0:00:14.4]}
1-0

[Event "Late-Titled-Tuesday-Blitz-July-09-2024"]
[Site "Chess.com"]
[Date "2024.07.09"]
[Round "11"]
[White "Bauman_Guy"]
[Black "mishanick"]
[Result "1/2-1/2"]
[WhiteElo "2927"]
[BlackElo "3083"]
[TimeControl "180+1"]
[EndTime "16:06:53 PDT"]
[Termination "Game drawn - insufficient material"]

1. e4 {[%clk 0:03:00.9]} 1... e6 {[%clk 0:02:51.4]} 2. d4 {[%clk 0:03:00.7]}
2... d5 {[%clk 0:02:51.9]} 3. Nc3 {[%clk 0:03:01]} 3... dxe4 {[%clk 0:02:51.5]}
4. Nxe4 {[%clk 0:03:01.9]} 4... Bd7 {[%clk 0:02:52.2]} 5. Nf3 {[%clk 0:03:02]}
5... Bc6 {[%clk 0:02:52.9]} 6. Bd3 {[%clk 0:03:02.5]} 6... Nd7 {[%clk
0:02:53.3]} 7. c3 {[%clk 0:03:02.7]} 7... Ngf6 {[%clk 0:02:53.9]} 8. Nxf6+
{[%clk 0:03:03.1]} 8... Nxf6 {[%clk 0:02:52.3]} 9. O-O {[%clk 0:03:03.6]} 9...
Bd6 {[%clk 0:02:48.7]} 10. Re1 {[%clk 0:03:03.7]} 10... Bxf3 {[%clk 0:02:48.5]}
11. Qxf3 {[%clk 0:03:03.5]} 11... c6 {[%clk 0:02:49.1]} 12. a4 {[%clk 0:03:03]}
12... a5 {[%clk 0:02:47.2]} 13. Bg5 {[%clk 0:02:59.7]} 13... Be7 {[%clk
0:02:47.6]} 14. Qh3 {[%clk 0:02:48.8]} 14... Qd5 {[%clk 0:02:45.4]} 15. Re5
{[%clk 0:02:47.6]} 15... Qd7 {[%clk 0:02:42.9]} 16. Rae1 {[%clk 0:02:46.2]}
16... h6 {[%clk 0:02:43.1]} 17. Bd2 {[%clk 0:02:40.4]} 17... Bd6 {[%clk
0:02:40.6]} 18. R5e2 {[%clk 0:02:33.6]} 18... Bc7 {[%clk 0:02:40.8]} 19. Bc4
{[%clk 0:02:23]} 19... Nd5 {[%clk 0:02:33.9]} 20. Qg4 {[%clk 0:02:21.9]} 20...
O-O-O {[%clk 0:02:30.2]} 21. b4 {[%clk 0:02:12.5]} 21... axb4 {[%clk 0:02:10.1]}
22. cxb4 {[%clk 0:02:12.5]} 22... Nf6 {[%clk 0:01:57.2]} 23. Qxg7 {[%clk
0:01:41.8]} 23... Qxd4 {[%clk 0:01:56.9]} 24. Qxf7 {[%clk 0:01:35.9]} 24... Qxc4
{[%clk 0:01:18.8]} 25. Qxf6 {[%clk 0:01:34.9]} 25... Rhf8 {[%clk 0:01:19.4]} 26.
Qc3 {[%clk 0:01:32.1]} 26... Qd5 {[%clk 0:01:16.2]} 27. b5 {[%clk 0:01:19.1]}
27... Rg8 {[%clk 0:00:56.7]} 28. g3 {[%clk 0:01:14.9]} 28... Rg4 {[%clk
0:00:47.2]} 29. bxc6 {[%clk 0:01:12.3]} 29... bxc6 {[%clk 0:00:46.9]} 30. Bxh6
{[%clk 0:00:57.4]} 30... e5 {[%clk 0:00:47.3]} 31. Rd2 {[%clk 0:00:43.4]} 31...
Rd4 {[%clk 0:00:45.6]} 32. Rxd4 {[%clk 0:00:38.5]} 32... exd4 {[%clk 0:00:46.5]}
33. Qd3 {[%clk 0:00:37.8]} 33... Kb7 {[%clk 0:00:44.2]} 34. h4 {[%clk
0:00:23.4]} 34... Ka7 {[%clk 0:00:31.9]} 35. Bg5 {[%clk 0:00:21.8]} 35... Rd7
{[%clk 0:00:31]} 36. Rc1 {[%clk 0:00:19.4]} 36... Rf7 {[%clk 0:00:22.7]} 37. Bd2
{[%clk 0:00:16.2]} 37... Bd6 {[%clk 0:00:13.6]} 38. Qc4 {[%clk 0:00:15.1]} 38...
Qxc4 {[%clk 0:00:09.4]} 39. Rxc4 {[%clk 0:00:15]} 39... c5 {[%clk 0:00:10.3]}
40. h5 {[%clk 0:00:15.1]} 40... Kb6 {[%clk 0:00:10.9]} 41. h6 {[%clk 0:00:15.2]}
41... Kc6 {[%clk 0:00:11.6]} 42. g4 {[%clk 0:00:11.9]} 42... Kd5 {[%clk
0:00:12]} 43. Rc1 {[%clk 0:00:12.5]} 43... c4 {[%clk 0:00:12.7]} 44. g5 {[%clk
0:00:13.1]} 44... c3 {[%clk 0:00:13.2]} 45. Bxc3 {[%clk 0:00:12.5]} 45... dxc3
{[%clk 0:00:13.2]} 46. Rxc3 {[%clk 0:00:13]} 46... Rf5 {[%clk 0:00:11.5]} 47.
Rh3 {[%clk 0:00:03.8]} 47... Rxg5+ {[%clk 0:00:11.9]} 48. Kf1 {[%clk 0:00:04.5]}
48... Be5 {[%clk 0:00:10.9]} 49. h7 {[%clk 0:00:04.9]} 49... Bh8 {[%clk
0:00:11.5]} 50. Ke2 {[%clk 0:00:04.5]} 50... Ke6 {[%clk 0:00:11]} 51. Rh4 {[%clk
0:00:04.3]} 51... Rd5 {[%clk 0:00:06.2]} 52. Ke3 {[%clk 0:00:03.4]} 52... Kf7
{[%clk 0:00:06]} 53. Rg4 {[%clk 0:00:03.1]} 53... Bg7 {[%clk 0:00:05.9]} 54. Rh4
{[%clk 0:00:02.6]} 54... Rd8 {[%clk 0:00:06.2]} 55. f3 {[%clk 0:00:02.7]} 55...
Kg6 {[%clk 0:00:06.5]} 56. Kf2 {[%clk 0:00:03.2]} 56... Bh6 {[%clk 0:00:06.3]}
57. a5 {[%clk 0:00:03.5]} 57... Kxh7 {[%clk 0:00:06.2]} 58. a6 {[%clk
0:00:03.6]} 58... Ra8 {[%clk 0:00:05.8]} 59. Ra4 {[%clk 0:00:04.5]} 59... Kg6
{[%clk 0:00:06.1]} 60. Ke2 {[%clk 0:00:05.1]} 60... Bf8 {[%clk 0:00:06.1]} 61.
Kd3 {[%clk 0:00:05.5]} 61... Kf6 {[%clk 0:00:04.5]} 62. Kc4 {[%clk 0:00:06.1]}
62... Ke6 {[%clk 0:00:05.1]} 63. Kb5 {[%clk 0:00:06.4]} 63... Kd7 {[%clk
0:00:05.2]} 64. Rd4+ {[%clk 0:00:07]} 64... Kc7 {[%clk 0:00:05.4]} 65. Rc4+
{[%clk 0:00:07]} 65... Kd7 {[%clk 0:00:05.6]} 66. Rd4+ {[%clk 0:00:07.2]} 66...
Bd6 {[%clk 0:00:06.2]} 67. Kb6 {[%clk 0:00:05.4]} 67... Rb8+ {[%clk 0:00:06.5]}
68. Ka5 {[%clk 0:00:05.8]} 68... Ra8 {[%clk 0:00:02.9]} 69. Kb6 {[%clk
0:00:05.7]} 69... Rb8+ {[%clk 0:00:03.4]} 70. Ka5 {[%clk 0:00:06.1]} 70... Kc6
{[%clk 0:00:04.1]} 71. a7 {[%clk 0:00:03.2]} 71... Bc7+ {[%clk 0:00:04.2]} 72.
Ka4 {[%clk 0:00:01.9]} 72... Ra8 {[%clk 0:00:04.8]} 73. Rc4+ {[%clk 0:00:02]}
73... Kb7 {[%clk 0:00:05.2]} 74. Kb5 {[%clk 0:00:02.5]} 74... Rxa7 {[%clk
0:00:05]} 75. Ra4 {[%clk 0:00:03.1]} 75... Ra8 {[%clk 0:00:01.9]} 76. Rxa8
{[%clk 0:00:02.7]} 76... Kxa8 {[%clk 0:00:02.8]} 77. Kc6 {[%clk 0:00:03.5]}
77... Kb8 {[%clk 0:00:02.9]} 78. Kd5 {[%clk 0:00:04.4]} 78... Kc8 {[%clk
0:00:03.4]} 79. Ke4 {[%clk 0:00:05.3]} 79... Kd7 {[%clk 0:00:04.2]} 80. f4
{[%clk 0:00:06.2]} 80... Ke7 {[%clk 0:00:04.8]} 81. f5 {[%clk 0:00:06.6]} 81...
Kf6 {[%clk 0:00:05.7]} 82. Kd5 {[%clk 0:00:07]} 82... Kxf5 {[%clk 0:00:06.1]}
1/2-1/2

[Event "Late-Titled-Tuesday-Blitz-July-09-2024"]
[Site "Chess.com"]
[Date "2024.07.09"]
[Round "11"]
[White "Jahonas"]
[Black "Nf3c5"]
[Result "1/2-1/2"]
[WhiteElo "2448"]
[BlackElo "2631"]
[TimeControl "180+1"]
[EndTime "16:07:34 PDT"]
[Termination "Game drawn by repetition"]

1. d4 {[%clk 0:03:00.9]} 1... Nf6 {[%clk 0:02:58.6]} 2. Bf4 {[%clk 0:03:01]}
2... d5 {[%clk 0:02:54.5]} 3. e3 {[%clk 0:03:01.2]} 3... c5 {[%clk 0:02:54.2]}
4. c3 {[%clk 0:03:01]} 4... e6 {[%clk 0:02:47.6]} 5. Nd2 {[%clk 0:03:00.8]} 5...
Bd6 {[%clk 0:02:47.6]} 6. Bg3 {[%clk 0:02:59.8]} 6... O-O {[%clk 0:02:48.1]} 7.
Ngf3 {[%clk 0:02:59.4]} 7... Qc7 {[%clk 0:02:47.9]} 8. Bd3 {[%clk 0:02:58.7]}
8... Nbd7 {[%clk 0:02:47.5]} 9. O-O {[%clk 0:02:57.8]} 9... e5 {[%clk 0:02:47]}
10. dxe5 {[%clk 0:02:56.2]} 10... Nxe5 {[%clk 0:02:47.9]} 11. Nxe5 {[%clk
0:02:55.8]} 11... Bxe5 {[%clk 0:02:48.8]} 12. Nf3 {[%clk 0:02:44.5]} 12... Bxg3
{[%clk 0:02:46.6]} 13. hxg3 {[%clk 0:02:44.5]} 13... Bg4 {[%clk 0:02:39.3]} 14.
Qc2 {[%clk 0:02:41.3]} 14... Rfe8 {[%clk 0:02:26]} 15. c4 {[%clk 0:02:40.6]}
15... dxc4 {[%clk 0:02:13.2]} 16. Bxc4 {[%clk 0:02:36.7]} 16... a6 {[%clk
0:02:07.5]} 17. Rac1 {[%clk 0:02:26.8]} 17... Rac8 {[%clk 0:02:03.9]} 18. Rfd1
{[%clk 0:02:10.7]} 18... b5 {[%clk 0:02:01.6]} 19. Be2 {[%clk 0:01:55.8]} 19...
c4 {[%clk 0:01:38.9]} 20. a4 {[%clk 0:01:54.2]} 20... Qa5 {[%clk 0:01:15.8]} 21.
axb5 {[%clk 0:01:48.1]} 21... axb5 {[%clk 0:01:15.9]} 22. Rd4 {[%clk 0:01:41.3]}
22... h6 {[%clk 0:01:08]} 23. Rcd1 {[%clk 0:01:30]} 23... Be6 {[%clk 0:01:06.4]}
24. Nh4 {[%clk 0:01:19.4]} 24... Rc5 {[%clk 0:00:56]} 25. b3 {[%clk 0:01:03.3]}
25... Rec8 {[%clk 0:00:52.8]} 26. bxc4 {[%clk 0:01:02.3]} 26... bxc4 {[%clk
0:00:52]} 27. Rc1 {[%clk 0:00:34.9]} 27... c3 {[%clk 0:00:43]} 28. Nf3 {[%clk
0:00:34.7]} 28... Rb8 {[%clk 0:00:33.5]} 29. Ra4 {[%clk 0:00:32.5]} 29... Qc7
{[%clk 0:00:30.9]} 30. Nd4 {[%clk 0:00:28.7]} 30... Bd5 {[%clk 0:00:25.9]} 31.
Qd1 {[%clk 0:00:26]} 31... Be4 {[%clk 0:00:21.8]} 32. Bf3 {[%clk 0:00:26]} 32...
c2 {[%clk 0:00:21]} 33. Qe1 {[%clk 0:00:25.5]} 33... Bg6 {[%clk 0:00:21.2]} 34.
Raa1 {[%clk 0:00:24]} 34... h5 {[%clk 0:00:18.8]} 35. Qe2 {[%clk 0:00:23.6]}
35... Rb2 {[%clk 0:00:15.7]} 36. Ra8+ {[%clk 0:00:20.8]} 36... Kh7 {[%clk
0:00:16]} 37. Qd2 {[%clk 0:00:19.9]} 37... Rb1 {[%clk 0:00:15.3]} 38. Ra1 {[%clk
0:00:19.6]} 38... Rxc1+ {[%clk 0:00:14.9]} 39. Rxc1 {[%clk 0:00:19.4]} 39... Qe5
{[%clk 0:00:15.1]} 40. Be2 {[%clk 0:00:18.8]} 40... Qc7 {[%clk 0:00:14.9]} 41.
Bd3 {[%clk 0:00:19]} 41... Bxd3 {[%clk 0:00:11.8]} 42. Qxd3+ {[%clk 0:00:19.2]}
42... g6 {[%clk 0:00:11.7]} 43. Rxc2 {[%clk 0:00:19.6]} 43... Rxc2 {[%clk
0:00:11.8]} 44. Nxc2 {[%clk 0:00:19.9]} 44... Ng4 {[%clk 0:00:11.3]} 45. Ne1
{[%clk 0:00:19.2]} 45... Qc1 {[%clk 0:00:11.3]} 46. Qe2 {[%clk 0:00:19.4]} 46...
Qc5 {[%clk 0:00:10.9]} 47. Nf3 {[%clk 0:00:17.4]} 47... Kg7 {[%clk 0:00:10.2]}
48. e4 {[%clk 0:00:17.4]} 48... Qc1+ {[%clk 0:00:10.1]} 49. Qe1 {[%clk
0:00:17.1]} 49... Qc6 {[%clk 0:00:10.6]} 50. e5 {[%clk 0:00:17.2]} 50... Qd5
{[%clk 0:00:10.2]} 51. Nh2 {[%clk 0:00:15.5]} 51... Nxe5 {[%clk 0:00:09.7]} 52.
Nf1 {[%clk 0:00:14.4]} 52... Nd3 {[%clk 0:00:09.4]} 53. Qc3+ {[%clk 0:00:13.8]}
53... Kh7 {[%clk 0:00:09]} 54. Ne3 {[%clk 0:00:14.2]} 54... Qe4 {[%clk
0:00:09.2]} 55. Qd2 {[%clk 0:00:13.9]} 55... Ne5 {[%clk 0:00:09.3]} 56. Qe2
{[%clk 0:00:13.8]} 56... Ng4 {[%clk 0:00:08.1]} 57. Kf1 {[%clk 0:00:13.4]} 57...
Nh2+ {[%clk 0:00:06.9]} 58. Kg1 {[%clk 0:00:13.3]} 58... Ng4 {[%clk 0:00:07.2]}
59. Kf1 {[%clk 0:00:12.7]} 59... Nf6 {[%clk 0:00:07.1]} 60. f3 {[%clk
0:00:11.5]} 60... Qb1+ {[%clk 0:00:07.1]} 61. Kf2 {[%clk 0:00:12]} 61... Qb6
{[%clk 0:00:07.6]} 62. Kf1 {[%clk 0:00:09.7]} 62... Qd4 {[%clk 0:00:08.2]} 63.
Nd1 {[%clk 0:00:09.4]} 63... Qd6 {[%clk 0:00:08.1]} 64. Nf2 {[%clk 0:00:09.4]}
64... Qxg3 {[%clk 0:00:08.5]} 65. Ne4 {[%clk 0:00:09.4]} 65... Qe5 {[%clk
0:00:08.1]} 66. Nxf6+ {[%clk 0:00:09.3]} 66... Qxf6 {[%clk 0:00:09]} 67. Qe4
{[%clk 0:00:09.8]} 67... Qa1+ {[%clk 0:00:09.4]} 68. Kf2 {[%clk 0:00:09.6]}
68... Qa2+ {[%clk 0:00:09.9]} 69. Kf1 {[%clk 0:00:09.8]} 69... Qb2 {[%clk
0:00:10.2]} 70. Qe7 {[%clk 0:00:09.7]} 70... Kg7 {[%clk 0:00:10.5]} 71. Qd7
{[%clk 0:00:09.1]} 71... Qa1+ {[%clk 0:00:10.7]} 72. Kf2 {[%clk 0:00:09.3]}
72... Qf6 {[%clk 0:00:10.9]} 73. Kf1 {[%clk 0:00:09.2]} 73... h4 {[%clk
0:00:11.4]} 74. Qd3 {[%clk 0:00:09.3]} 74... Qg5 {[%clk 0:00:10.2]} 75. Kf2
{[%clk 0:00:08.9]} 75... Qg3+ {[%clk 0:00:09.9]} 76. Kf1 {[%clk 0:00:09.3]}
76... h3 {[%clk 0:00:10.5]} 77. gxh3 {[%clk 0:00:09.6]} 77... Qxh3+ {[%clk
0:00:10.6]} 78. Kf2 {[%clk 0:00:10.3]} 78... Qh2+ {[%clk 0:00:11.1]} 79. Ke3
{[%clk 0:00:10.3]} 79... Qg1+ {[%clk 0:00:11.2]} 80. Ke2 {[%clk 0:00:10.4]}
80... Qc5 {[%clk 0:00:11.7]} 81. Kf1 {[%clk 0:00:09.7]} 81... Qc1+ {[%clk
0:00:11.3]} 82. Kg2 {[%clk 0:00:09.8]} 82... Qc5 {[%clk 0:00:12]} 83. Qe4 {[%clk
0:00:09.6]} 83... Kf6 {[%clk 0:00:11.4]} 84. Qf4+ {[%clk 0:00:09.3]} 84... Qf5
{[%clk 0:00:12]} 85. Qd4+ {[%clk 0:00:08.7]} 85... Qe5 {[%clk 0:00:12.4]} 86.
Qd8+ {[%clk 0:00:08.8]} 86... Kg7 {[%clk 0:00:12.4]} 87. Qd3 {[%clk 0:00:08.4]}
87... Qg5+ {[%clk 0:00:11.7]} 88. Kf2 {[%clk 0:00:08.2]} 88... Qc5+ {[%clk
0:00:11.4]} 89. Kg2 {[%clk 0:00:08.4]} 89... Kh6 {[%clk 0:00:09.6]} 90. Qe4
{[%clk 0:00:07.7]} 90... Qg5+ {[%clk 0:00:09.3]} 91. Kf1 {[%clk 0:00:08.1]}
91... Qc1+ {[%clk 0:00:09.6]} 92. Kg2 {[%clk 0:00:08]} 92... Qd2+ {[%clk
0:00:09.8]} 93. Kf1 {[%clk 0:00:08.2]} 93... Qg5 {[%clk 0:00:08.2]} 94. Qb7
{[%clk 0:00:07.2]} 94... Qf6 {[%clk 0:00:06.8]} 95. Qd5 {[%clk 0:00:07.2]} 95...
Kg7 {[%clk 0:00:07.2]} 96. Kg2 {[%clk 0:00:06]} 96... Qb2+ {[%clk 0:00:06.2]}
97. Kf1 {[%clk 0:00:06.3]} 97... Qb4 {[%clk 0:00:06]} 98. Qc6 {[%clk 0:00:06.2]}
98... Qd4 {[%clk 0:00:05.7]} 99. Kg2 {[%clk 0:00:06.2]} 99... Qf6 {[%clk
0:00:05.9]} 100. Qd5 {[%clk 0:00:05.5]} 100... Qe6 {[%clk 0:00:05.3]} 101. Qd4+
{[%clk 0:00:05.7]} 101... Qf6 {[%clk 0:00:05.6]} 102. Qd5 {[%clk 0:00:06]}
1/2-1/2